bitfinex/quotes_SOLUSD_20251204
["timestamp","ask_amount","ask_price","bid_price","bid_amount"]
[1764861691803,0.1,143.27,143.26,18.74714485]
[1764861692295,0.1,143.27,143.26,15.07031551]
[1764861692587,0.1,143.3,143.29,16.308864]
[1764861692791,0.1,143.3,143.29,44.66563826]
[1764861692961,0.1,143.3,143.29,44.97563826]
[1764861693160,0.1,143.3,143.29,35.85569334]
[1764861693389,0.1,143.3,143.29,28.07569334]
[1764861693759,0.1,143.3,143.29,35.05454741]
[1764861694685,0.1,143.3,143.29,35.36454741]
[1764861694985,0.1,143.3,143.29,44.17449233]
[1764861695662,0.2,143.35,143.29,108.28272721]
[1764861695862,0.86,143.35,143.31,18.74470946]
[1764861696272,12.42682934,143.34,143.3,6.97819863]
[1764861696472,0.66,143.33,143.3,6.97819863]
[1764861697487,0.66,143.33,143.29,11.76682934]
[1764861697688,12.42682934,143.33,143.28,26.52585887]
[1764861697872,19.40398569,143.33,143.28,18.74585887]
[1764861698074,0.66,143.32,143.28,6.97902953]
[1764861698272,0.66,143.32,143.28,18.74585887]
[1764861698474,0.66,143.32,143.29,11.76682934]
[1764861698674,19.60290953,143.35,143.3,11.76682934]
[1764861698967,0.2,143.35,143.31,11.76682934]
[1764861699275,0.66,143.34,143.3,11.76682934]
[1764861699900,0.66,143.34,143.31,6.97788012]
[1764861700068,19.40331663,143.34,143.3,6.97820913]
[1764861700385,11.76682934,143.33,143.29,6.97869322]
[1764861700587,11.76682934,143.32,143.29,6.97869322]
[1764861700794,0.66,143.32,143.29,6.97869322]
[1764861700967,0.66,143.31,143.29,6.97869322]
[1764861701163,0.66,143.31,143.3,6.97836706]
[1764861701364,12.42682934,143.31,143.27,6.97971318]
[1764861701569,0.66,143.3,143.27,6.97971318]
[1764861702187,12.42682934,143.3,143.25,11.76682934]
[1764861702390,19.40541075,143.3,143.25,18.74760534]
[1764861702705,0.72,143.29,143.25,6.980776]
[1764861702996,0.72,143.29,143.26,6.98026017]
[1764861703389,0.68,143.3,143.27,11.76682934]
[1764861703689,0.68,143.3,143.26,36.19787828]
[1764861704066,0.68,143.32,143.27,11.76682934]
[1764861704471,12.44682934,143.32,143.27,11.76682934]
[1764861705071,0.68,143.31,143.27,11.76682934]
[1764861705272,0.68,143.31,143.26,36.19787828]
[1764861706071,0.68,143.31,143.27,11.76682934]
[1764861706393,19.42477907,143.31,143.26,36.19787828]
[1764861706580,11.76682934,143.3,143.26,6.98026017]
[1764861706776,11.76682934,143.3,143.24,7.78]
[1764861706777,11.76682934,143.29,143.24,7.78]
[1764861706996,11.76682934,143.28,143.23,11.76682934]
[1764861707199,12.44682934,143.28,143.23,11.76682934]
[1764861707496,7.78,143.3,143.25,11.76682934]
[1764861707700,12.44682934,143.27,143.22,19.54682934]
[1764861707995,19.42704832,143.27,143.22,11.76682934]
[1764861708177,0.68,143.26,143.22,18.7489584]
[1764861708367,0.68,143.26,143.22,6.98212906]
[1764861708573,0.68,143.26,143.22,18.7489584]
[1764861709383,11.76682934,143.25,143.2,6.98304784]
[1764861709589,11.76682934,143.24,143.19,6.98353683]
[1764861709782,11.76682934,143.23,143.2,6.9831753]
[1764861710101,11.76682934,143.24,143.2,6.9831753]
[1764861710500,0.68,143.23,143.2,6.9831753]
[1764861711304,0.18,143.23,143.2,6.9831753]
[1764861712286,11.76682934,143.24,143.2,6.9831753]
[1764861714014,11.76682934,143.18,143.13,17.46633739]
[1764861714187,11.76682934,143.18,143.13,29.23316673]
[1764861714500,16.308864,143.22,143.14,36.87826337]
[1764861714703,7.78,143.21,143.17,11.76682934]
[1764861715202,8.46,143.21,143.17,11.76682934]
[1764861715399,8.46,143.21,143.18,6.98421567]
[1764861715606,0.68,143.2,143.18,6.98421567]
[1764861715978,7.78,143.21,143.18,6.98421567]
[1764861716204,8.46,143.21,143.18,6.98421567]
[1764861716777,6.98193582,143.23,143.18,18.75104501]
[1764861716778,0.68,143.23,143.18,18.75104501]
[1764861717124,16.308864,143.25,143.19,8.44]
[1764861717125,0.68,143.25,143.19,8.44]
[1764861717289,0.68,143.24,143.21,6.9827526]
[1764861718287,11.76682934,143.23,143.2,6.98322213]
[1764861718607,11.76682934,143.22,143.17,11.76682934]
[1764861718807,12.44682934,143.22,143.17,11.76682934]
[1764861719014,7.78,143.23,143.2,6.98298578]
[1764861719223,7.78,143.23,143.2,18.74981512]
[1764861719416,7.78,143.23,143.16,32.89880892]
[1764861719417,0.68,143.22,143.19,6.98372791]
[1764861720313,7.78,143.23,143.19,18.75055725]
[1764861720514,8.46,143.23,143.19,18.75055725]
[1764861720719,7.78,143.23,143.19,11.76682934]
[1764861721023,8.46,143.23,143.19,11.76682934]
[1764861721431,8.46,143.23,143.17,6.98452821]
[1764861721432,11.76682934,143.2,143.17,6.98452821]
[1764861721602,11.76682934,143.2,143.14,6.98588553]
[1764861721603,11.76682934,143.18,143.14,6.98588553]
[1764861721923,11.76682934,143.17,143.14,6.98588553]
[1764861722101,12.44682934,143.19,143.15,6.9856315]
[1764861722620,16.988864,143.22,143.16,0.66]
[1764861722828,8.46,143.22,143.18,11.76682934]
[1764861723001,8.46,143.22,143.16,0.66]
[1764861723002,0.68,143.21,143.17,11.76682934]
[1764861723320,12.44682934,143.21,143.16,11.76682934]
[1764861723696,0.68,143.21,143.17,12.42682934]
[1764861723901,0.68,143.21,143.16,11.76682934]
[1764861724315,0.68,143.21,143.15,24.748864]
[1764861724316,11.76682934,143.2,143.15,53.31927942]
[1764861724509,19.42960743,143.21,143.15,53.31927942]
[1764861724704,11.76682934,143.19,143.15,6.98553307]
[1764861724910,0.68,143.2,143.13,25.24610763]
[1764861724911,0.68,143.2,143.13,45.54180097]
[1764861725136,11.76682934,143.18,143.14,6.98587629]
[1764861725301,11.76682934,143.16,143.11,37.01526606]
[1764861725630,11.76682934,143.17,143.12,6.98709787]
[1764861725808,0.68,143.16,143.12,6.98709787]
[1764861726204,12.44682934,143.16,143.12,6.98709787]
[1764861726514,11.76682934,143.13,143.07,0.66]
[1764861726724,8.46,143.16,143.1,6.98780247]
[1764861726725,0.68,143.15,143.1,6.98780247]
[1764861726924,11.76682934,143.11,143.04,11.76682934]
[1764861727223,11.76682934,143.06,143.0,12.62682934]
[1764861727521,0.68,143.06,143.01,16.308864]
[1764861727697,8.80994492,143.11,143.01,16.308864]
[1764861727698,12.44682934,143.08,143.02,29.24674551]
[1764861727895,0.68,143.1,143.04,18.75770729]
[1764861728118,11.76682934,143.08,143.04,6.99087795]
[1764861728520,12.44682934,143.08,143.04,24.46850658]
[1764861729511,0.68,143.07,143.04,24.46850658]
[1764861729829,12.44682934,143.07,143.04,6.99087795]
[1764861730008,0.68,143.07,143.04,6.99087795]
[1764861730411,18.75692609,143.06,143.02,6.99169915]
[1764861730617,12.44682934,143.05,143.02,6.99169915]
[1764861731329,0.68,143.05,143.02,6.99169915]
[1764861731524,12.44682934,143.05,143.02,6.99169915]
[1764861732435,12.44682934,143.05,143.01,6.992518]
[1764861732627,11.76682934,143.05,143.01,6.992518]
[1764861732829,0.66,143.04,143.0,7.19295059]
[1764861733208,0.66,143.1,143.03,11.76682934]
[1764861733429,11.76682934,143.08,143.03,11.76682934]
[1764861733729,11.76682934,143.06,143.02,16.308864]
[1764861733929,12.42682934,143.08,143.02,28.76569334]
[1764861734105,20.22682934,143.08,143.03,11.76682934]
[1764861734304,12.42682934,143.07,143.03,6.99154023]
[1764861734502,0.66,143.09,143.04,12.45682934]
[1764861734729,12.42682934,143.11,143.06,11.76682934]
[1764861734924,11.76682934,143.1,143.05,12.45682934]
[1764861735311,12.42682934,143.1,143.05,12.45682934]
[1764861735505,0.66,143.1,143.05,12.45682934]
[1764861735706,0.66,143.1,143.06,6.99007409]
[1764861735907,0.66,143.1,143.06,7.68007409]
[1764861736102,0.66,143.1,143.06,6.99007409]
[1764861736622,12.42682934,143.1,143.06,6.99007409]
[1764861737714,0.66,143.09,143.06,6.99007409]
[1764861737916,12.42682934,143.1,143.06,6.99007409]
[1764861738417,0.66,143.1,143.06,18.75690343]
[1764861738611,12.42682934,143.1,143.06,6.99007409]
[1764861739131,0.66,143.1,143.06,18.75690343]
[1764861739318,12.42682934,143.1,143.06,6.99007409]
[1764861739834,0.66,143.1,143.06,18.75690343]
[1764861740636,0.66,143.1,143.06,36.23208866]
[1764861741142,0.66,143.1,143.06,24.46525932]
[1764861741317,12.42682934,143.1,143.06,24.46525932]
[1764861741836,26.5541547,143.12,143.08,6.989097]
[1764861742027,0.66,143.11,143.07,6.98952815]
[1764861742337,12.42682934,143.11,143.07,6.98952815]
[1764861742513,0.66,143.11,143.07,6.98952815]
[1764861742713,0.66,143.1,143.07,6.98952815]
[1764861743528,0.66,143.1,143.02,113.56710392]
[1764861743529,11.76682934,143.08,143.04,17.47701231]
[1764861743928,0.66,143.07,143.05,6.99055495]
[1764861744132,11.76682934,143.06,143.02,6.99184226]
[1764861744329,11.76682934,143.05,143.01,6.99243945]
[1764861744523,0.66,143.05,143.01,6.99243945]
[1764861744725,0.66,143.04,143.01,6.99243945]
[1764861746041,27.217073,143.06,143.01,18.75926879]
[1764861746347,0.66,143.05,143.01,18.75926879]
[1764861746546,11.76682934,143.04,143.01,6.99243945]
[1764861746848,12.42682934,143.05,143.01,6.99243945]
[1764861747557,11.76682934,143.04,143.01,6.99243945]
[1764861747759,11.76682934,143.04,143.0,17.68227289]
[1764861747760,12.42682934,143.04,143.0,7.19285092]
[1764861747914,0.66,143.03,143.0,7.19285092]
[1764861748764,11.76682934,143.01,143.0,0.2]
[1764861749045,12.42682934,143.03,143.0,7.19300699]
[1764861749338,11.76682934,143.02,143.0,0.2]
[1764861749518,12.42682934,143.02,143.0,0.2]
[1764861749714,19.54682934,143.03,143.0,7.19299535]
[1764861750141,0.66,143.02,143.0,7.19299535]
[1764861752337,8.29075945,143.02,143.0,0.2]
[1764861753336,8.29075945,143.02,143.0,7.19297261]
[1764861753835,8.29075945,143.02,143.0,0.2]
[1764861754146,0.66,143.02,143.0,0.2]
[1764861754323,8.29075945,143.02,143.0,0.2]
[1764861755825,0.66,143.01,143.0,0.2]
[1764861756031,8.29075945,143.01,143.0,0.2]
[1764861757153,0.66,143.01,143.0,0.2]
[1764861757523,8.29075945,143.01,143.0,0.2]
[1764861759034,7.63075945,143.02,143.0,0.2]
[1764861759255,15.41075945,143.02,143.0,0.2]
[1764861759438,0.66,143.01,143.0,0.2]
[1764861760951,8.29075945,143.01,143.0,0.2]
[1764861761455,0.66,143.01,143.0,0.2]
[1764861761853,15.28327745,143.01,143.0,0.2]
[1764861762437,2.85146888,142.96,142.93,0.2]
[1764861762658,7.8,142.96,142.93,7.19634512]
[1764861762955,2.85146888,142.94,142.93,0.2]
[1764861763441,0.71,142.94,142.93,0.2]
[1764861763757,3.56146888,142.94,142.93,0.2]
[1764861763963,10.55741123,142.94,142.93,0.2]
[1764861764340,15.34778873,142.94,142.93,0.2]
[1764861764544,23.14778873,142.94,142.93,0.2]
[1764861764749,31.95773365,142.94,142.93,0.2]
[1764861766148,24.15773365,142.94,142.93,0.2]
[1764861766478,31.95773365,142.94,142.93,0.2]
[1764861766650,24.31588727,142.94,142.93,0.2]
[1764861766846,31.95773365,142.94,142.93,0.2]
[1764861770486,23.30448382,142.95,142.93,0.2]
[1764861770655,16.15184638,142.94,142.93,0.2]
[1764861771170,24.9617913,142.94,142.93,0.2]
[1764861771944,31.95773365,142.94,142.93,0.2]
[1764861772553,23.14778873,142.94,142.93,0.2]
[1764861772751,16.15184638,142.94,142.93,0.2]
[1764861772951,23.14778873,142.94,142.93,0.2]
[1764861773450,16.15184638,142.94,142.93,0.2]
[1764861773662,23.14778873,142.94,142.93,0.2]
[1764861774365,7.8,142.94,142.93,0.2]
[1764861774671,31.75071038,142.95,142.93,0.2]
[1764861774971,7.8,142.94,142.93,0.2]
[1764861775359,8.35184638,142.94,142.93,0.2]
[1764861775561,15.44184638,142.94,142.93,0.2]
[1764861776368,16.15184638,142.94,142.93,0.2]
[1764861777176,14.79594235,142.94,142.93,0.2]
[1764861777352,15.44184638,142.94,142.93,0.2]
[1764861777673,22.43778873,142.94,142.93,0.2]
[1764861777886,23.14778873,142.94,142.93,0.2]
[1764861778250,15.50594235,142.94,142.93,0.2]
[1764861778471,23.14778873,142.94,142.93,0.2]
[1764861778682,23.14778873,142.94,142.9,0.2]
[1764861778683,8.80994492,142.93,142.9,0.2]
[1764861778856,7.64184638,142.91,142.9,0.2]
[1764861779055,16.15184638,142.91,142.9,0.2]
[1764861779363,24.9617913,142.91,142.9,0.2]
[1764861779770,17.1617913,142.91,142.9,0.2]
[1764861779970,16.15184638,142.91,142.9,0.2]
[1764861780456,17.48745808,142.96,142.9,0.2]
[1764861780658,7.64184638,142.94,142.9,7.90790062]
[1764861780860,15.44184638,142.95,142.9,15.549747]
[1764861781160,7.64184638,142.93,142.9,7.90790062]
[1764861781365,7.64184638,142.94,142.9,7.90790062]
[1764861781678,8.51,142.95,142.9,0.2]
[1764861781679,7.64184638,142.92,142.9,0.2]
[1764861781888,16.308864,142.94,142.91,0.71]
[1764861782190,8.51,143.07,142.96,16.308864]
[1764861782353,8.51,143.07,143.02,7.64184638]
[1764861782354,23.29893809,143.06,143.02,7.64184638]
[1764861782554,31.65078447,143.06,143.01,7.64184638]
[1764861782772,49.1259697,143.06,143.01,8.35184638]
[1764861783080,8.35184638,143.05,143.0,14.63466544]
[1764861783277,7.8,143.04,143.0,14.63466544]
[1764861783589,7.8,143.04,143.01,15.34419135]
[1764861783883,6.98947795,143.08,143.03,7.64184638]
[1764861784084,7.8,143.07,143.04,7.64184638]
[1764861784338,7.8,143.07,143.0,0.71]
[1764861784339,7.64184638,143.06,143.0,0.71]
[1764861784462,6.99056274,143.05,143.01,7.64184638]
[1764861784658,7.8,143.04,143.01,7.64184638]
[1764861785161,7.8,143.04,143.0,8.35184638]
[1764861785590,15.44184638,143.04,143.0,8.35184638]
[1764861785796,15.44184638,143.04,142.97,8.35184638]
[1764861785797,7.64184638,143.01,142.97,8.35184638]
[1764861786091,7.8,143.0,142.97,8.35184638]
[1764861786294,7.8,143.0,142.94,7.8]
[1764861786295,7.8,143.0,142.98,8.35184638]
[1764861786490,7.8,143.01,142.99,7.64184638]
[1764861786784,7.8,143.01,143.0,7.64184638]
[1764861787078,7.8,143.01,143.0,0.71]
[1764861787683,7.8,143.01,142.97,14.63619812]
[1764861787857,7.64184638,142.98,142.94,7.64184638]
[1764861788064,7.8,142.97,142.94,15.34757086]
[1764861788269,7.8,142.97,142.95,0.71]
[1764861788581,7.8,142.97,142.95,8.35184638]
[1764861788890,7.8,142.97,142.95,0.71]
[1764861789260,7.8,142.97,142.92,33.80056763]
[1764861789261,14.79452891,142.97,142.93,15.34816302]
[1764861789676,23.14637529,142.97,142.92,7.64184638]
[1764861789887,7.64184638,142.95,142.9,14.83943414]
[1764861790192,7.8,142.94,142.91,7.64184638]
[1764861790376,14.79601429,142.94,142.91,8.35184638]
[1764861791110,7.8,142.94,142.91,15.34915325]
[1764861791400,7.8,142.94,142.92,8.35184638]
[1764861791768,7.8,142.94,142.91,6.99730687]
[1764861792070,7.8,142.94,142.92,8.35184638]
[1764861792304,7.8,142.95,142.93,7.64184638]
[1764861792589,7.8,142.95,142.92,7.70660696]
[1764861792885,7.8,142.95,142.92,15.34845334]
[1764861793193,7.8,142.95,142.93,0.66]
[1764861793392,22.43739154,142.95,142.9,0.86]
[1764861793693,23.14739154,142.95,142.91,0.66]
[1764861794085,23.14739154,142.95,142.9,15.49945904]
[1764861794391,23.14739154,142.95,142.91,0.66]
[1764861795286,23.14739154,142.95,142.91,8.30184638]
[1764861795698,14.79554516,142.95,142.91,15.29921798]
[1764861796001,7.8,142.94,142.92,0.66]
[1764861796297,7.8,142.94,142.92,8.30184638]
[1764861796466,7.8,142.94,142.91,14.63921798]
[1764861796670,7.8,142.94,142.92,0.66]
[1764861797595,25.83612306,142.99,142.93,7.64184638]
[1764861797902,7.8,142.98,142.94,7.64184638]
[1764861798389,7.8,142.98,142.95,0.66]
[1764861798791,22.43594352,142.98,142.95,0.66]
[1764861798997,7.64184638,142.97,142.93,14.63791115]
[1764861799192,7.64184638,142.97,142.93,15.29791115]
[1764861799367,8.35184638,142.97,142.93,15.29791115]
[1764861799568,7.64184638,142.97,142.93,14.63791115]
[1764861799797,7.8,142.97,142.95,14.63710966]
[1764861799988,7.8,142.97,142.96,7.64184638]
[1764861800177,7.8,142.97,142.96,0.66]
[1764861800374,7.64184638,143.0,142.96,0.66]
[1764861800598,7.8,142.99,142.97,7.64184638]
[1764861800805,7.8,142.99,142.97,14.63628229]
[1764861801008,7.8,142.99,142.97,8.30184638]
[1764861801370,7.8,142.99,142.96,14.636653]
[1764861801608,22.4354568,142.99,142.95,7.64184638]
[1764861801902,7.64184638,142.97,142.93,7.64184638]
[1764861802075,7.8,142.96,142.93,7.64184638]
[1764861802389,7.8,142.96,142.92,7.64184638]
[1764861802390,16.15184638,142.96,142.92,7.64184638]
[1764861802585,7.8,142.96,142.93,7.64184638]
[1764861802894,14.79522769,142.96,142.93,8.30184638]
[1764861803071,14.79522769,142.96,142.92,7.64184638]
[1764861803275,14.79522769,142.96,142.92,15.29875227]
[1764861803776,15.50522769,142.96,142.92,15.29875227]
[1764861803981,15.50522769,142.96,142.92,7.65690589]
[1764861804182,0.71,142.95,142.91,14.63909904]
[1764861804575,0.71,142.95,142.91,15.29909904]
[1764861804775,7.7058931,142.95,142.91,15.29909904]
[1764861805007,7.7058931,142.95,142.91,7.65725266]
[1764861805176,6.9958931,142.95,142.92,0.66]
[1764861805382,6.9958931,142.95,142.92,8.30184638]
[1764861805674,6.9958931,142.95,142.9,7.1977019]
[1764861805880,7.7058931,142.95,142.91,7.64184638]
[1764861806086,7.7058931,142.95,142.91,8.30184638]
[1764861806297,8.35184638,142.94,142.9,7.84184638]
[1764861806498,7.8,142.93,142.9,0.2]
[1764861806701,7.64184638,142.92,142.9,0.2]
[1764861806914,8.35184638,142.92,142.9,0.2]
[1764861807692,7.64184638,142.91,142.9,0.2]
[1764861807982,6.99708606,142.92,142.9,0.2]
[1764861808196,7.8,142.91,142.9,0.2]
[1764861808402,15.34847228,142.93,142.9,0.2]
[1764861808709,7.8,142.91,142.9,0.2]
[1764861809208,8.51,142.91,142.9,0.2]
[1764861809385,25.19770544,142.93,142.9,0.2]
[1764861809690,7.8,142.92,142.9,0.2]
[1764861809875,7.8,142.91,142.9,0.2]
[1764861810080,5.86251595,142.99,142.91,0.66]
[1764861810300,15.50398517,142.98,142.94,7.64184638]
[1764861810503,27.32086476,142.98,142.94,11.81687959]
[1764861810702,12.52687959,142.97,142.92,0.66]
[1764861810899,12.52687959,142.97,142.93,11.81687959]
[1764861812101,6.99485726,142.97,142.93,12.47687959]
[1764861812301,0.71,142.96,142.92,6.99649322]
[1764861812511,7.8,142.95,142.93,11.81687959]
[1764861813004,7.8,142.95,142.92,19.47337281]
[1764861813373,7.8,142.95,142.93,12.47687959]
[1764861815720,16.308864,142.99,142.94,11.81687959]
[1764861815880,7.8,142.98,142.95,11.81687959]
[1764861816074,8.51,142.98,142.95,11.81687959]
[1764861816308,0.71,142.97,142.94,11.81687959]
[1764861816692,7.8,142.96,142.95,11.81687959]
[1764861817704,28.83574359,142.99,142.95,19.47233254]
[1764861817705,0.71,142.99,142.95,19.47233254]
[1764861817907,7.8,142.99,142.98,11.81687959]
[1764861819009,7.8,142.99,142.97,12.47687959]
[1764861819389,34.49953379,143.02,142.98,12.47687959]
[1764861819390,24.01137423,143.02,142.98,12.47687959]
[1764861819704,7.8,143.01,142.98,12.47687959]
[1764861820204,7.8,143.01,142.98,11.81687959]
[1764861820407,8.51,143.01,142.98,11.81687959]
[1764861821081,19.51859446,143.03,142.98,19.47081491]
[1764861821283,6.99124385,143.04,143.01,11.81687959]
[1764861821500,7.8,143.03,143.02,11.81687959]
[1764861821702,7.8,143.03,143.01,11.81687959]
[1764861822312,6.99027536,143.06,143.02,11.81687959]
[1764861822483,7.8,143.05,143.03,11.81687959]
[1764861822680,14.79027536,143.06,143.03,12.49687959]
[1764861822876,14.79027536,143.06,143.01,7.71232048]
[1764861823105,15.45027536,143.06,143.03,11.81687959]
[1764861823403,6.98975393,143.07,143.04,11.81687959]
[1764861823708,7.8,143.06,143.05,11.81687959]
[1764861823880,7.8,143.06,143.02,0.72]
[1764861823881,7.8,143.06,143.04,11.81687959]
[1764861824506,8.46,143.06,143.03,11.81687959]
[1764861824885,0.66,143.05,143.02,11.81687959]
[1764861825207,7.65070866,143.05,143.0,7.71280662]
[1764861825399,7.65070866,143.05,143.02,11.81687959]
[1764861825594,12.47687959,143.04,143.0,11.81687959]
[1764861825802,7.8,143.03,143.0,11.81687959]
[1764861826002,7.8,143.03,143.01,11.81687959]
[1764861826510,7.8,143.03,143.0,12.53687959]
[1764861827103,14.79161825,143.03,143.0,12.53687959]
[1764861827588,14.79161825,143.03,143.0,11.81687959]
[1764861827789,15.45161825,143.03,143.0,11.81687959]
[1764861828196,7.8,143.03,143.01,12.53687959]
[1764861828396,7.8,143.03,143.01,11.81687959]
[1764861829213,7.65058608,143.05,143.01,18.80913413]
[1764861829403,6.99058608,143.05,143.03,11.81687959]
[1764861829602,14.79026303,143.06,143.03,11.81687959]
[1764861829915,7.8,143.06,143.04,11.81687959]
[1764861830113,12.47687959,143.1,143.05,12.53687959]
[1764861830293,7.8,143.08,143.05,12.53687959]
[1764861830617,7.8,143.08,143.06,11.81687959]
[1764861830814,7.8,143.09,143.07,11.81687959]
[1764861831201,14.78866521,143.09,143.06,11.81687959]
[1764861831819,7.8,143.09,143.07,11.81687959]
[1764861832002,6.98763918,143.11,143.07,7.70957931]
[1764861832202,7.8,143.1,143.08,11.81687959]
[1764861832816,8.46,143.1,143.08,11.81687959]
[1764861833123,7.8,143.1,143.08,18.80583133]
[1764861833324,7.8,143.11,143.09,11.81687959]
[1764861833528,20.27687959,143.11,143.07,11.81687959]
[1764861833829,8.46,143.11,143.08,11.81687959]
[1764861834016,6.98733357,143.12,143.08,11.81687959]
[1764861834218,23.95573574,143.13,143.1,11.81687959]
[1764861834526,8.44,143.12,143.1,11.81687959]
[1764861835621,15.42717806,143.12,143.1,11.81687959]
[1764861835823,15.42717806,143.12,143.08,18.80576047]
[1764861836017,15.42717806,143.12,143.09,11.81687959]
[1764861836209,14.76717806,143.12,143.09,18.80539564]
[1764861836530,15.42717806,143.12,143.08,7.7088969]
[1764861836731,15.42717806,143.12,143.09,11.81687959]
[1764861838723,0.66,143.11,143.05,0.72]
[1764861838924,11.81687959,143.1,143.06,11.81687959]
[1764861839231,7.78,143.09,143.06,11.81687959]
[1764861839907,8.44,143.09,143.06,11.81687959]
[1764861840110,19.59687959,143.09,143.05,11.81687959]
[1764861840342,12.47687959,143.08,143.04,11.81687959]
[1764861840521,11.81687959,143.07,143.03,11.81687959]
[1764861840832,26.5871005,143.06,142.99,8.5]
[1764861841006,11.81687959,143.02,142.98,11.81687959]
[1764861841203,32.90540614,143.06,142.96,0.72]
[1764861841204,19.59687959,143.01,142.96,0.72]
[1764861841408,8.44,143.0,142.94,12.53687959]
[1764861841620,7.78,142.99,142.96,11.81687959]
[1764861841814,7.78,142.99,142.95,18.81217265]
[1764861842019,8.44,142.99,142.95,11.81687959]
[1764861842310,7.78,143.0,142.98,11.81687959]
[1764861842821,0.66,142.99,142.95,18.81229317]
[1764861843032,0.66,142.99,142.94,11.81687959]
[1764861843033,12.47687959,142.99,142.94,11.81687959]
[1764861843223,12.47687959,142.99,142.94,19.53272316]
[1764861843409,7.78,142.98,142.95,12.53687959]
[1764861843614,7.78,142.98,142.95,11.81687959]
[1764861844130,7.78,142.98,142.94,11.81687959]
[1764861844131,0.66,142.97,142.94,11.81687959]
[1764861844434,0.66,142.97,142.91,11.81687959]
[1764861844435,11.81687959,142.96,142.91,11.81687959]
[1764861844635,11.81687959,142.96,142.9,7.19756258]
[1764861844636,11.81687959,142.94,142.9,0.2]
[1764861844809,14.77557828,142.95,142.9,19.01458324]
[1764861845010,0.66,142.96,142.9,19.01458324]
[1764861845011,7.78,142.97,142.93,11.81687959]
[1764861845419,19.59687959,142.97,142.93,11.81687959]
[1764861845623,11.81687959,142.95,142.9,7.19770365]
[1764861845839,7.78,142.94,142.9,19.01458324]
[1764861846004,7.78,142.94,142.9,19.73458324]
[1764861846330,8.44,142.94,142.9,12.73687959]
[1764861846627,20.25687959,142.94,142.9,0.92]
[1764861846838,8.44,142.97,142.93,11.81687959]
[1764861847016,7.78,142.97,142.94,11.81687959]
[1764861847212,7.78,142.97,142.93,11.81687959]
[1764861847412,0.66,142.96,142.93,11.81687959]
[1764861847808,0.66,142.96,142.92,11.81687959]
[1764861848034,0.66,142.96,142.92,12.53687959]
[1764861848233,19.59687959,142.97,142.93,12.53687959]
[1764861848534,19.59687959,142.97,142.93,11.81687959]
[1764861848733,7.78,142.97,142.94,6.99594235]
[1764861848937,8.44,142.97,142.94,18.81282194]
[1764861849239,8.44,142.97,142.94,6.99594235]
[1764861849437,8.44,142.97,142.94,18.81282194]
[1764861849733,8.44,142.97,142.94,11.81687959]
[1764861850552,27.25139884,142.97,142.93,18.8131571]
[1764861850727,18.81328834,142.94,142.9,0.2]
[1764861850917,11.81687959,142.93,142.9,0.2]
[1764861851112,7.8,142.92,142.9,0.2]
[1764861852626,8.48,142.92,142.9,0.2]
[1764861852831,15.47695965,142.92,142.9,0.2]
[1764861853141,12.49687959,142.91,142.9,0.2]
[1764861853349,8.48,142.91,142.9,0.2]
[1764861853513,16.308864,142.95,142.9,0.91]
[1764861853717,7.8,142.94,142.92,11.81687959]
[1764861853953,0.68,142.95,142.93,11.81687959]
[1764861854118,7.8,142.94,142.9,7.90775426]
[1764861854319,7.8,142.94,142.91,11.81687959]
[1764861854637,8.48,142.94,142.91,11.81687959]
[1764861854855,0.68,142.93,142.9,0.2]
[1764861855024,12.49687959,142.93,142.9,0.2]
[1764861855544,12.49687959,142.92,142.9,0.2]
[1764861855728,7.8,142.91,142.9,0.2]
[1764861856228,29.10682451,142.91,142.9,0.2]
[1764861856917,15.80735587,142.91,142.9,0.2]
[1764861857114,33.79994354,142.93,142.9,0.2]
[1764861857115,0.68,142.93,142.9,0.2]
[1764861857342,8.48,142.92,142.9,0.2]
[1764861858126,12.49687959,142.91,142.9,0.2]